fUSD/lending_fUSD_20240820
["ID","MTS","AMOUNT","RATE_DAILY","PERIOD"]
[335390942,1724179832146,-274.95998021,0.00011336,2]
[335390945,1724179832156,-1298.23330788,0.00011336,2]
[335390948,1724179832166,-157.15,0.00011427,2]
[335390951,1724179832175,-932.71,0.00011482,2]
[335390955,1724179832185,-200.0,0.00011499,2]
[335390957,1724179832194,-250.0,0.00011507,2]
[335390959,1724179832204,-2000.0,0.00011511,2]
[335390961,1724179832213,-171.79,0.00011521,2]
[335390963,1724179832222,-480.0,0.00011522,2]
[335390964,1724179832231,-250.0,0.00011534,2]
[335390966,1724179832241,-1201.76,0.00011541,2]
[335390968,1724179832256,-23506.73,0.00011567,2]
[335390970,1724179832265,-500.0,0.0001157,2]
[335390972,1724179832275,-520.0,0.00011634,2]
[335390974,1724179832284,-380.32741541,0.00011645,2]
[335390976,1724179832293,-305.71,0.00011854,2]
[335390977,1724179832303,-316.79,0.00011871,2]
[335390978,1724179832313,-10699.0,0.00011899,2]
[335390979,1724179832322,-10699.0,0.00011899,2]
[335390980,1724179832334,-420.0,0.00011926,2]
[335390981,1724179832343,-1400.0,0.00011943,2]
[335390982,1724179832352,-150.0,0.00012043,2]
[335390983,1724179832361,-150.59,0.00012169,2]
[335390984,1724179832370,-426.75,0.00012169,2]
[335390985,1724179832380,-531.44,0.00012169,2]
[335390986,1724179832389,-150.0,0.00012169,2]
[335390987,1724179832398,-533.929,0.00012429,2]
[335390988,1724179832407,-157.093,0.00012429,2]
[335390989,1724179832416,-699.28097,0.000128,2]
[335390990,1724179832425,-480.0,0.00012962,2]
[335390991,1724179832434,-1061.28,0.00012991,2]
[335390992,1724179832444,-150.0,0.00012991,2]
[335390993,1724179832453,-150.0,0.00012991,2]
[335390994,1724179832463,-426.75,0.00012991,2]
[335390995,1724179832473,-485.71,0.00012991,2]
[335390996,1724179832483,-150.0,0.00012991,2]
[335390997,1724179832492,-151.03,0.00012991,2]
[335390998,1724179832502,-150.0,0.00012991,2]
[335390999,1724179832511,-150.0,0.00012991,2]
[335391000,1724179832521,-426.75,0.00012991,2]
[335391001,1724179832531,-426.75,0.00012991,2]
[335391002,1724179832540,-425.05,0.00012991,2]
[335391003,1724179832550,-2504.38348333,0.00013001,2]
[335391004,1724179832560,-155.0,0.00013042,2]
[335391005,1724179832569,-155.0,0.00013086,2]
[335391006,1724179832578,-520.0,0.00013089,2]
[335391007,1724179832588,-587.0,0.00013107,2]
[335391008,1724179832598,-1174.16,0.00013123,2]
[335391009,1724179832608,-500.0,0.00013123,2]
[335391010,1724179832617,-629.03902958,0.00013123,2]
[335391011,1724179832627,-2421.97,0.00013123,2]
[335391012,1724179832637,-500.0,0.00013123,2]
[335391013,1724179832650,-502.22854357,0.00013123,2]
[335391014,1724179832659,-500.0,0.00013123,2]
[335391015,1724179832669,-500.0,0.00013123,2]
[335391016,1724179832678,-500.0,0.00013123,2]
[335391017,1724179832689,-500.0,0.00013123,2]
[335391018,1724179832699,-500.0,0.00013123,2]
[335391019,1724179832708,-500.0,0.00013123,2]
[335391020,1724179832719,-560.04447754,0.00013123,2]
[335391021,1724179832728,-150.189748,0.000133,4]
[335391022,1724179832739,-500.0,0.00013332,2]
[335391023,1724179832749,-500.0,0.00013332,2]
[335391024,1724179832761,-500.0,0.00013332,2]
[335391025,1724179832771,-511.97285481,0.00013332,2]
[335391026,1724179832780,-500.0,0.00013332,2]
[335391027,1724179832790,-305.71,0.00013335,2]
[335391028,1724179832800,-388.35152272,0.00013556,2]
[335391029,1724179832809,-411.8166782,0.00013582,2]
[335391030,1724179832819,-212.7824281,0.00013593,2]
[335391031,1724179832829,-1338.8536,0.00013599,2]
[335391032,1724179832838,-506.6185,0.000136,2]
[335391033,1724179832848,-3294.8956,0.000136,2]
[335391034,1724179832857,-150.0,0.0001362,2]
[335391035,1724179832867,-20345.66,0.00013699,2]
[335391036,1724179832877,-436.4,0.00013699,2]
[335391037,1724179832886,-2751.0,0.00013699,2]
[335391038,1724179832896,-200.0,0.00013699,2]
[335391039,1724179832905,-176.15,0.00013699,2]
[335391040,1724179832915,-7500.0,0.00013699,2]
[335391041,1724179832925,-220.95108025,0.00013699,2]
[335391042,1724179832933,-500.0,0.00013699,2]
[335391043,1724179832943,-176.30820077,0.00013699,2]
[335391044,1724179832953,-500.0,0.00013699,2]
[335391045,1724179832963,-500.0,0.00013699,2]
[335391046,1724179832972,-500.0,0.00013699,2]
[335391047,1724179832982,-500.0,0.00013699,2]
[335391048,1724179832991,-500.0,0.00013699,2]
[335391049,1724179833002,-500.0,0.00013699,2]
[335391050,1724179833015,-1043.03,0.00013699,2]
[335391051,1724179833025,-647.77,0.00013699,2]
[335391052,1724179833035,-502.72256008,0.00013699,2]
[335391053,1724179833044,-500.0,0.00013699,2]
[335391054,1724179833054,-500.0,0.00013699,2]
[335391055,1724179833063,-1041.41,0.00013699,2]
[335391056,1724179833073,-500.0,0.00013699,2]
[335391057,1724179833082,-500.0,0.00013699,2]
[335391058,1724179833092,-500.0,0.00013699,2]
[335391059,1724179833101,-500.0,0.00013699,2]
[335391060,1724179833111,-1265.89,0.00013699,2]
[335391061,1724179833121,-1300.31,0.00013699,2]
[335391062,1724179833130,-500.0,0.00013699,2]
[335391063,1724179833140,-500.0,0.00013699,2]
[335391064,1724179833149,-837.02,0.00013699,2]
[335391065,1724179833159,-500.0,0.00013699,2]
[335391066,1724179833168,-500.0,0.00013699,2]
[335391067,1724179833178,-500.0,0.00013699,2]
[335391068,1724179833187,-500.0,0.00013699,2]
[335391069,1724179833197,-376.42887146,0.00013699,2]
[335391070,1724179833207,-500.0,0.00013699,2]
[335391071,1724179833216,-500.0,0.00013699,2]
[335391072,1724179833226,-500.0,0.00013699,2]
[335391073,1724179833235,-457.38,0.00013699,2]
[335391074,1724179833244,-2893.22,0.00013699,2]
[335391075,1724179833256,-500.0,0.00013699,2]
[335391076,1724179833265,-500.0,0.00013699,2]
[335391077,1724179833274,-469.00055721,0.00013699,2]
[335391078,1724179833284,-500.0,0.00013699,2]
[335391079,1724179833294,-500.0,0.00013699,2]
[335391080,1724179833303,-500.0,0.00013699,2]
[335391081,1724179833313,-500.0,0.00013699,2]
[335391082,1724179833323,-500.0,0.00013699,2]
[335391083,1724179833332,-500.0,0.00013699,2]
[335391084,1724179833341,-1174.86,0.00013699,2]
[335391085,1724179833351,-1174.86,0.00013699,2]
[335391086,1724179833361,-500.0,0.00013699,2]
[335391087,1724179833370,-1312.9,0.00013699,2]
[335391088,1724179833379,-500.0,0.00013699,2]
[335391089,1724179833388,-500.0,0.00013699,2]
[335391090,1724179833397,-500.0,0.00013699,2]
[335391091,1724179833406,-500.0,0.00013699,2]
[335391092,1724179833416,-500.0,0.00013699,2]
[335391093,1724179833426,-20000.0,0.00013699,2]
[335391094,1724179833436,-5570.12925512,0.00013699,2]
[335391095,1724179833599,-4781.02268136,0.00013699,2]
[335391096,1724179833611,-609.07369875,0.00013699,2]
[335391097,1724179833622,-966.43463374,0.00013699,2]
[335391098,1724179833634,-463.61871879,0.00013699,2]
[335391099,1724179833646,-2595.45439401,0.00013699,2]
[335391100,1724179833660,-544.0998858,0.00013699,2]
[335391101,1724179833672,-315.04,0.00013699,2]
[335391102,1724179833684,-588.10718822,0.00013699,2]
[335391103,1724179833696,-739.69628748,0.00013699,2]
[335391104,1724179833708,-480.91057092,0.00013699,2]
[335391105,1724179833723,-593.55351269,0.00013699,2]
[335391106,1724179833736,-533.92040024,0.00013699,2]
[335391115,1724179837867,-157.82,0.0001369,2]
[335391116,1724179837877,-1218.93877288,0.00013699,2]
[335391117,1724179837887,-107.71962591,0.00013699,2]
[335391118,1724179837898,-392.28037409,0.00013699,2]
[335391119,1724179837907,-222.28055987,0.00013699,2]
[335391120,1724179837917,-344.28469624,0.000137,2]
[335391121,1724179837928,-11837.00919012,0.000137,2]
[335391122,1724179837939,-620.79838578,0.000137,2]
[335391123,1724179837993,-157.82,0.0001369,2]
[335391124,1724179838002,-491.205,0.000137,2]
[335391167,1724179838608,-15368.42832786,0.000137,2]
[335391168,1724179838618,-2022.4053,0.000137,2]
[335391169,1724179838627,-7394.3626,0.000137,2]
[335391170,1724179838636,-150.0,0.000137,2]
[335391171,1724179838646,-533.6032,0.000137,2]
[335391172,1724179838656,-47899.07619889,0.000137,2]
[335391280,1724179839888,-157.82,0.0001369,2]
[335391281,1724179839898,-157.82,0.0001369,2]
[335391282,1724179839907,-157.82,0.0001369,2]
[335391283,1724179839917,-157.82,0.0001369,2]
[335391299,1724179840093,-157.82,0.0001369,2]
[335391301,1724179840103,-157.82,0.0001369,2]
[335391303,1724179840113,-157.82,0.0001369,2]
[335391304,1724179840123,-24.36829927,0.00013699,2]
[335391307,1724179840135,-975.20170073,0.00013699,2]
[335391309,1724179840145,-999.57,0.00013699,2]
[335391311,1724179840155,-462.62188628,0.000137,2]
[335391313,1724179840166,-968.08777415,0.000137,2]
[335391315,1724179840178,-727.40483639,0.000137,2]
[335391317,1724179840189,-139521.21534765,0.000137,2]
[335391320,1724179840208,-877.29818837,0.000137,2]
[335391322,1724179840219,-1192.356298,0.000137,2]
[335391325,1724179840231,-780.52,0.000137,2]
[335391330,1724179840276,-157.82,0.0001369,2]
[335391332,1724179840285,-422.5145512,0.000137,2]
[335391335,1724179840299,-817.86703771,0.000137,2]
[335391337,1724179840312,-5063.96244553,0.000137,2]
[335391654,1724179843501,-157.82,0.0001369,2]
[335391656,1724179843511,-157.82,0.0001369,2]
[335391657,1724179843522,-157.82,0.0001369,2]
[335391659,1724179843531,-157.82,0.0001369,2]
[335391661,1724179843541,-157.82,0.0001369,2]
[335391663,1724179843550,-157.82,0.0001369,2]
[335391665,1724179843559,-157.82,0.0001369,2]
[335391667,1724179843569,-157.82,0.0001369,2]
[335391669,1724179843578,-157.82,0.0001369,2]
[335391671,1724179843587,-157.82,0.0001369,2]
[335391673,1724179843596,-157.82,0.0001369,2]
[335391675,1724179843605,-340.3845079,0.000137,2]
[335391692,1724179843769,-1868.56651074,0.000137,2]
[335391945,1724179846080,-157.82,0.0001369,2]
[335391947,1724179846089,-157.82,0.0001369,2]
[335391949,1724179846099,-157.82,0.0001369,2]
[335391951,1724179846107,-157.82,0.0001369,2]
[335391953,1724179846115,-157.82,0.0001369,2]
[335391956,1724179846124,-157.82,0.0001369,2]
[335391959,1724179846133,-157.82,0.0001369,2]
[335391961,1724179846142,-157.82,0.0001369,2]
[335391965,1724179846154,-157.82,0.0001369,2]
[335391967,1724179846163,-157.82,0.0001369,2]
[335391969,1724179846172,-157.82,0.0001369,2]
[335391971,1724179846181,-157.82,0.0001369,2]
[335391973,1724179846191,-1076.31,0.00013699,2]
[335391974,1724179846200,-1076.31,0.00013699,2]
[335391977,1724179846209,-40066.46671719,0.000137,2]
[335391978,1724179846218,-151.0,0.000137,2]
[335391980,1724179846227,-151.0,0.000137,2]
[335391982,1724179846236,-151.0,0.000137,2]
[335391984,1724179846246,-151.0,0.000137,2]
[335391985,1724179846255,-286.294607,0.000137,2]
[335391986,1724179846266,-155.447476,0.000137,2]
[335391987,1724179846276,-155.447476,0.000137,2]
[335391988,1724179846285,-155.447476,0.000137,2]
[335391989,1724179846295,-155.447476,0.000137,2]
[335391990,1724179846304,-151.0,0.000137,2]
[335391991,1724179846313,-151.0,0.000137,2]
[335391992,1724179846322,-151.0,0.000137,2]
[335391993,1724179846331,-151.0,0.000137,2]
[335391994,1724179846340,-151.0,0.000137,2]
[335391995,1724179846349,-219.266636,0.000137,2]
[335391996,1724179846359,-151.0,0.000137,2]
[335391997,1724179846368,-151.0,0.000137,2]
[335391998,1724179846377,-151.0,0.000137,2]
[335391999,1724179846387,-151.0,0.000137,2]
[335392000,1724179846396,-195.612852,0.000137,2]
[335392001,1724179846405,-204.088647,0.000137,2]
[335392002,1724179846414,-151.0,0.000137,2]
[335392003,1724179846424,-151.0,0.000137,2]
[335392004,1724179846433,-151.0,0.000137,2]
[335392005,1724179846442,-151.0,0.000137,2]
[335392006,1724179846451,-157.10906012,0.000137,2]
[335392007,1724179846461,-175.10094526,0.000137,2]
[335392008,1724179846470,-900.0,0.000137,5]
[335392009,1724179846479,-151.0,0.000137,2]
[335392010,1724179846488,-151.0,0.000137,2]
[335392011,1724179846498,-151.0,0.000137,2]
[335392012,1724179846508,-151.0,0.000137,2]
[335392014,1724179846519,-167.711842,0.000137,2]
[335392015,1724179846528,-167.711842,0.000137,2]
[335392016,1724179846539,-167.711842,0.000137,2]
[335392017,1724179846548,-167.711842,0.000137,2]
[335392018,1724179846559,-151.0,0.000137,2]
[335392020,1724179846569,-151.0,0.000137,2]
[335392021,1724179846577,-151.0,0.000137,2]
[335392022,1724179846586,-151.0,0.000137,2]
[335392023,1724179846595,-151.0,0.000137,2]
[335392024,1724179846605,-151.0,0.000137,2]
[335392025,1724179846614,-151.0,0.000137,2]
[335392026,1724179846623,-151.0,0.000137,2]
[335392027,1724179846633,-151.0,0.000137,2]
[335392028,1724179846642,-151.0,0.000137,2]
[335392029,1724179846655,-151.0,0.000137,2]
[335392030,1724179846665,-151.0,0.000137,2]
[335392031,1724179846676,-151.0,0.000137,2]
[335392032,1724179846685,-151.0,0.000137,2]
[335392033,1724179846694,-151.0,0.000137,2]
[335392034,1724179846704,-151.0,0.000137,2]
[335392035,1724179846714,-191.344855,0.000137,2]
[335392036,1724179846723,-191.344855,0.000137,2]
[335392037,1724179846734,-191.344855,0.000137,2]
[335392038,1724179846743,-191.344855,0.000137,2]
[335392039,1724179846754,-151.0,0.000137,2]
[335392040,1724179846765,-151.0,0.000137,2]
[335392041,1724179846774,-151.0,0.000137,2]
[335392042,1724179846782,-151.962635,0.000137,2]
[335392043,1724179846792,-151.0,0.000137,2]
[335392044,1724179846802,-282.970433,0.000137,2]
[335392045,1724179846812,-151.0,0.000137,2]
[335392046,1724179846823,-151.0,0.000137,2]
[335392047,1724179846833,-289.742289,0.000137,2]
[335392048,1724179846842,-151.0,0.000137,2]
[335392049,1724179846851,-151.0,0.000137,2]
[335392050,1724179846862,-150.0,0.00013726,2]
[335392051,1724179846872,-426.45507876,0.00013797,2]
[335392052,1724179846881,-647.77,0.00013798,2]
[335392053,1724179846890,-500.0,0.00013798,2]
[335392054,1724179846900,-500.0,0.00013798,2]
[335392055,1724179846910,-1041.41,0.00013798,2]
[335392056,1724179846919,-500.0,0.00013798,2]
[335392057,1724179846929,-500.0,0.00013798,2]
[335392058,1724179846938,-500.0,0.00013798,2]
[335392059,1724179846949,-481.09979104,0.00013798,2]
[335392060,1724179846960,-1265.89,0.00013798,2]
[335392061,1724179846969,-1300.31,0.00013798,2]
[335392062,1724179846978,-500.0,0.00013798,2]
[335392063,1724179846987,-500.0,0.00013798,2]
[335392064,1724179846996,-837.02,0.00013798,2]
[335392065,1724179847006,-384.41700284,0.00013798,2]
[335392066,1724179847015,-500.0,0.00013798,2]
[335392067,1724179847024,-2893.22,0.00013798,2]
[335392068,1724179847034,-500.0,0.00013798,2]
[335392069,1724179847043,-151.0,0.00013798,2]
[335392070,1724179847054,-1312.9,0.00013798,2]
[335392071,1724179847064,-243.104604,0.00013798,2]
[335392072,1724179847073,-151.0,0.00013798,2]
[335392073,1724179847083,-151.0,0.00013798,2]
[335392074,1724179847092,-191.344855,0.00013798,2]
[335392075,1724179847102,-191.344855,0.00013798,2]
[335392076,1724179847112,-500.0,0.00013798,2]
[335392077,1724179847122,-151.0,0.00013798,2]
[335392078,1724179847132,-500.0,0.00013799,2]
[335392079,1724179847143,-500.0,0.00013799,2]
[335392080,1724179847152,-500.0,0.00013799,2]
[335392081,1724179847161,-363.74868113,0.00013799,2]
[335392082,1724179847171,-2421.97,0.00013799,2]
[335392083,1724179847180,-2421.97,0.00013799,2]
[335392084,1724179847189,-2421.97,0.00013799,2]
[335392085,1724179847199,-500.0,0.00013799,2]
[335392086,1724179847208,-500.0,0.00013799,2]
[335392087,1724179847217,-500.0,0.00013799,2]
[335392088,1724179847227,-500.0,0.00013799,2]
[335392089,1724179847236,-500.0,0.00013799,2]
[335392090,1724179847245,-500.0,0.00013799,2]
[335392091,1724179847255,-500.0,0.00013799,2]
[335392092,1724179847267,-500.0,0.00013799,2]
[335392093,1724179847276,-500.0,0.00013799,2]
[335392094,1724179847285,-647.77,0.00013799,2]
[335392095,1724179847294,-500.0,0.00013799,2]
[335392096,1724179847303,-500.0,0.00013799,2]
[335392097,1724179847314,-151.0,0.00013799,2]
[335392098,1724179847324,-500.0,0.00013799,2]
[335392099,1724179847334,-500.0,0.00013799,2]
[335392100,1724179847344,-500.0,0.00013799,2]
[335392101,1724179847354,-500.0,0.00013799,2]
[335392102,1724179847363,-1041.41,0.00013799,2]
[335392103,1724179847373,-500.0,0.00013799,2]
[335392104,1724179847382,-500.0,0.00013799,2]
[335392105,1724179847391,-500.0,0.00013799,2]
[335392106,1724179847400,-500.0,0.00013799,2]
[335392107,1724179847408,-500.0,0.00013799,2]
[335392108,1724179847418,-500.0,0.00013799,2]
[335392109,1724179847429,-500.0,0.00013799,2]
[335392110,1724179847441,-500.0,0.00013799,2]
[335392111,1724179847451,-500.0,0.00013799,2]
[335392112,1724179847463,-151.0,0.00013799,2]
[335392113,1724179847472,-155.447476,0.00013799,2]
[335392114,1724179847482,-155.447476,0.00013799,2]
[335392115,1724179847491,-155.447476,0.00013799,2]
[335392116,1724179847501,-155.447476,0.00013799,2]
[335392117,1724179847510,-151.0,0.00013799,2]
[335392118,1724179847520,-151.0,0.00013799,2]
[335392119,1724179847530,-151.0,0.00013799,2]
[335392120,1724179847539,-151.0,0.00013799,2]
[335392121,1724179847548,-151.0,0.00013799,2]
[335392122,1724179847558,-151.0,0.00013799,2]
[335392123,1724179847567,-178.969658,0.00013799,2]
[335392124,1724179847576,-500.0,0.00013799,2]
[335392125,1724179847585,-500.0,0.00013799,2]
[335392126,1724179847594,-1265.89,0.00013799,2]
[335392127,1724179847603,-1300.31,0.00013799,2]
[335392128,1724179847612,-500.0,0.00013799,2]
[335392129,1724179847621,-500.0,0.00013799,2]
[335392130,1724179847630,-500.0,0.00013799,2]
[335392131,1724179847639,-627.54484779,0.00013799,2]
[335392132,1724179847651,-500.0,0.00013799,2]
[335392133,1724179847660,-500.0,0.00013799,2]
[335392134,1724179847669,-504.85214977,0.00013799,2]
[335392135,1724179847678,-500.0,0.00013799,2]
[335392136,1724179847687,-500.0,0.00013799,2]
[335392137,1724179847696,-500.0,0.00013799,2]
[335392138,1724179847706,-837.02,0.00013799,2]
[335392139,1724179847716,-500.0,0.00013799,2]
[335392140,1724179847726,-500.0,0.00013799,2]
[335392141,1724179847735,-500.0,0.00013799,2]
[335392142,1724179847745,-151.0,0.00013799,2]
[335392143,1724179847754,-151.840113,0.00013799,2]
[335392144,1724179847763,-151.0,0.00013799,2]
[335392145,1724179847773,-151.0,0.00013799,2]
[335392146,1724179847783,-500.0,0.00013799,2]
[335392147,1724179847792,-151.0,0.00013799,2]
[335392148,1724179847801,-151.0,0.00013799,2]
[335392149,1724179847810,-226.73184,0.00013799,2]
[335392150,1724179847819,-167.711842,0.00013799,2]
[335392151,1724179847828,-167.711842,0.00013799,2]
[335392152,1724179847837,-167.711842,0.00013799,2]
[335392153,1724179847846,-167.711842,0.00013799,2]
[335392154,1724179847856,-500.0,0.00013799,2]
[335392155,1724179847865,-500.0,0.00013799,2]
[335392156,1724179847874,-500.0,0.00013799,2]
[335392157,1724179847883,-2893.22,0.00013799,2]
[335392158,1724179847891,-151.0,0.00013799,2]
[335392159,1724179847901,-151.0,0.00013799,2]
[335392160,1724179847910,-151.0,0.00013799,2]
[335392161,1724179847919,-151.0,0.00013799,2]
[335392162,1724179847929,-500.0,0.00013799,2]
[335392163,1724179847938,-500.0,0.00013799,2]
[335392164,1724179847947,-500.0,0.00013799,2]
[335392165,1724179847956,-151.0,0.00013799,2]
[335392166,1724179847965,-151.0,0.00013799,2]
[335392167,1724179847974,-500.0,0.00013799,2]
[335392168,1724179847983,-500.0,0.00013799,2]
[335392169,1724179847992,-500.0,0.00013799,2]
[335392170,1724179848002,-500.0,0.00013799,2]
[335392171,1724179848011,-500.0,0.00013799,2]
[335392172,1724179848021,-500.0,0.00013799,2]
[335392173,1724179848030,-500.0,0.00013799,2]
[335392174,1724179848039,-500.0,0.00013799,2]
[335392175,1724179848048,-500.0,0.00013799,2]
[335392176,1724179848057,-1174.86,0.00013799,2]
[335392177,1724179848067,-1174.86,0.00013799,2]
[335392178,1724179848076,-1174.86,0.00013799,2]
[335392179,1724179848085,-500.0,0.00013799,2]
[335392180,1724179848094,-151.0,0.00013799,2]
[335392181,1724179848103,-1312.9,0.00013799,2]
[335392182,1724179848262,-500.0,0.00013799,2]
[335392183,1724179848274,-510.14420653,0.00013799,2]
[335392184,1724179848283,-151.0,0.00013799,2]
[335392185,1724179848294,-191.344855,0.00013799,2]
[335392186,1724179848303,-191.344855,0.00013799,2]
[335392187,1724179848312,-500.0,0.00013799,2]
[335392188,1724179848324,-500.0,0.00013799,2]
[335392189,1724179848333,-500.0,0.00013799,2]
[335392190,1724179848343,-500.0,0.00013799,2]
[335392191,1724179848353,-151.0,0.00013799,2]
[335392192,1724179848362,-7220.36298509,0.00013799,2]
[335392193,1724179848371,-726.16372,0.00013799,2]
[335392194,1724179848381,-151.0,0.00013799,2]
[335392195,1724179848390,-999.57,0.00013799,2]
[335392196,1724179848404,-999.57,0.00013799,2]
[335392197,1724179848423,-1076.31,0.00013799,2]
[335392198,1724179848444,-1076.31,0.00013799,2]
[335392199,1724179848463,-151.0,0.00013799,2]
[335392200,1724179848475,-1076.31,0.00013799,2]
[335392201,1724179848485,-151.0,0.00013799,2]
[335392202,1724179848494,-573.0,0.000138,2]
[335392203,1724179848504,-250000.0,0.000138,2]
[335392204,1724179848523,-151.0,0.000138,2]
[335392205,1724179848532,-151.0,0.000138,2]
[335392206,1724179848542,-151.0,0.000138,2]
[335392207,1724179848552,-155.447476,0.000138,2]
[335392208,1724179848561,-155.447476,0.000138,2]
[335392209,1724179848571,-155.447476,0.000138,2]
[335392210,1724179848580,-155.447476,0.000138,2]
[335392211,1724179848590,-222.800395,0.000138,2]
[335392212,1724179848601,-151.0,0.000138,2]
[335392213,1724179848610,-151.0,0.000138,2]
[335392214,1724179848620,-151.0,0.000138,2]
[335392215,1724179848629,-151.0,0.000138,2]
[335392216,1724179848638,-279.722327,0.000138,2]
[335392217,1724179848652,-151.0,0.000138,2]
[335392218,1724179848662,-151.0,0.000138,2]
[335392219,1724179848672,-1900.0,0.000138,5]
[335392220,1724179848682,-151.0,0.000138,2]
[335392221,1724179848692,-151.0,0.000138,2]
[335392222,1724179848702,-167.711842,0.000138,2]
[335392223,1724179848713,-167.711842,0.000138,2]
[335392224,1724179848723,-167.711842,0.000138,2]
[335392225,1724179848733,-167.711842,0.000138,2]
[335392226,1724179848743,-193135.12879708,0.000138,3]
[335392227,1724179848759,-43108.08925,0.000138,3]
[335392228,1724179848776,-157.82,0.0001369,2]
[335392229,1724179848786,-387.58061468,0.000138,3]
[335392230,1724180022787,310.0,0.0001,2]
[335392231,1724180224029,-740.0,0.0001,2]
[335392232,1724180224054,-7983.0,0.000102,5]
[335392233,1724180224077,-2842.1612565,0.00010899,2]
[335392234,1724180224102,-303.2,0.00010901,2]
[335392235,1724180224125,-150.0,0.00011,2]
[335392236,1724180336007,150.0,0.00011,2]
[335392237,1724180338832,898.10403951,0.00018,120]
[335392238,1724180461632,150.0,0.00011,2]
[335392239,1724180587582,150.0,0.00011,2]
[335392240,1724180685250,344.09,0.00010664,2]
[335392241,1724180712734,265.27,0.00011,2]
[335392250,1724180944436,5534.98860504,0.00010999,2]
[335392282,1724180996509,494.60128173,0.00010999,2]
[335392284,1724181010877,155.29133208,0.00010999,2]
[335392287,1724181032127,-296.63479044,0.00011127,2]
[335392288,1724181032138,-156.24364823,0.00011127,2]
[335392289,1724181032148,-155.0,0.00011127,2]
[335392290,1724181032157,-349.15124606,0.00011336,2]
[335392291,1724181032166,-203.56323821,0.00011336,2]
[335392292,1724181032175,-2111.83717658,0.00011999,2]
[335392293,1724181032185,-3939.36827943,0.00011999,2]
[335392294,1724181032194,-367.971,0.00012429,2]
[335392295,1724181032203,-250.0,0.0001251,2]
[335392296,1724181032212,-250.0,0.00012524,2]
[335392297,1724181032221,-246.29,0.0001255,2]
[335392298,1724181032231,-921.21237177,0.00012645,2]
[335392299,1724181032242,-78.78762823,0.00012645,2]
[335392300,1724181032251,-599.6,0.00012695,2]
[335392301,1724181032260,-153.71,0.00012738,2]
[335392302,1724181032270,-466.35,0.0001281,2]
[335392303,1724181032279,-344.09,0.00012928,2]
[335392304,1724181032289,-1074.67923523,0.00012938,2]
[335392305,1724181032299,-1003.66094424,0.00012938,2]
[335392306,1724181032310,-135.46082136,0.00012938,2]
[335392307,1724181032319,-155.0,0.00012938,2]
[335392309,1724181032329,-134.04216647,0.00013,2]
[335392310,1724181032344,-1203.05659584,0.00013,2]
[335392311,1724181032354,-688.90470152,0.00013,2]
[335392312,1724181032365,-698.21529848,0.00013,2]
[335392313,1724181032375,-150.0,0.00013,2]
[335392314,1724181032384,-155.0,0.00013052,2]